bitfinex/quotes_BTCUSD_20240101
["timestamp","ask_amount","ask_price","bid_price","bid_amount"]
[1704110895346,0.468198,42717.0,42712.0,0.23935494]
[1704110895565,0.007,42713.0,42712.0,0.24035494]
[1704110895788,0.007,42713.0,42712.0,0.24135494]
[1704110896009,0.468224,42715.0,42712.0,0.24035494]
[1704110896223,0.468224,42715.0,42712.0,0.24135494]
[1704110896435,0.468224,42715.0,42712.0,0.24405287]
[1704110896903,0.468236,42714.0,42712.0,0.24405287]
[1704110897354,0.468236,42714.0,42712.0,0.24305287]
[1704110897548,0.468236,42714.0,42712.0,0.24405287]
[1704110898012,0.468236,42714.0,42712.0,0.24205287]
[1704110898222,0.005,42713.0,42712.0,0.24205287]
[1704110898660,0.474236,42714.0,42712.0,0.24205287]
[1704110899108,0.475236,42714.0,42712.0,0.24305287]
[1704110899255,0.005,42713.0,42712.0,0.24305287]
[1704110899450,0.005,42713.0,42712.0,0.24205287]
[1704110899924,0.005,42713.0,42712.0,0.24305287]
[1704110900617,0.475236,42714.0,42712.0,0.24305287]
[1704110900833,0.481236,42714.0,42712.0,0.24305287]
[1704110901477,0.474236,42714.0,42712.0,0.24205287]
[1704110901690,0.438236,42714.0,42712.0,0.24205287]
[1704110901890,0.501241,42713.0,42712.0,0.24205287]
[1704110902058,0.546241,42713.0,42712.0,0.24205287]
[1704110902281,0.491241,42713.0,42712.0,0.24205287]
[1704110902683,0.491241,42713.0,42712.0,0.24305287]
[1704110903046,0.491241,42713.0,42712.0,0.24205287]
[1704110903672,0.496241,42713.0,42712.0,0.24205287]
[1704110905178,0.501241,42713.0,42712.0,0.24205287]
[1704110905987,0.501241,42713.0,42707.0,0.0002728]
[1704110905988,0.2,42712.0,42707.0,0.0002728]
[1704110906208,0.468296,42708.0,42707.0,0.0002728]
[1704110906640,0.491296,42708.0,42707.0,0.0002728]
[1704110907682,0.491296,42708.0,42707.0,0.0032728]
[1704110908748,0.023,42708.0,42707.0,0.0032728]
[1704110908961,0.323,42711.0,42707.0,0.0032728]
[1704110909170,0.468293,42709.0,42707.0,0.0032728]
[1704110909405,0.468293,42709.0,42708.0,0.2402]
[1704110909616,0.491293,42709.0,42708.0,0.2402]
[1704110911376,0.497293,42709.0,42708.0,0.2402]
[1704110911999,0.504293,42709.0,42708.0,0.2412]
[1704110912262,0.036,42709.0,42708.0,0.2412]
[1704110912471,0.497293,42709.0,42707.0,0.0002728]
[1704110912678,0.491296,42708.0,42707.0,0.0002728]
[1704110914749,0.496296,42708.0,42707.0,0.0002728]
[1704110914930,0.496296,42708.0,42707.0,0.0012728]
[1704110915280,0.496296,42708.0,42707.0,0.0002728]
[1704110915636,0.501296,42708.0,42707.0,0.0002728]
[1704110916623,0.501296,42708.0,42699.0,0.02882]
[1704110916624,0.2,42704.0,42699.0,0.02882]
[1704110916835,0.2,42704.0,42698.0,0.02882]
[1704110916836,0.3,42699.0,42698.0,0.02882]
[1704110917042,0.95538816,42699.0,42698.0,0.02882]
[1704110917255,1.94322093,42699.0,42698.0,0.02882]
[1704110917436,2.00030164,42699.0,42698.0,0.02882]
[1704110917876,2.70030164,42699.0,42698.0,0.02882]
[1704110918311,0.31,42695.0,42691.0,0.02882]
[1704110918515,0.31,42692.0,42691.0,0.02882]
[1704110918727,1.33468811,42692.0,42691.0,0.02882]
[1704110918933,2.08106068,42692.0,42691.0,0.02882]
[1704110919540,1.90011911,42692.0,42691.0,0.02882]
[1704110919783,2.60011911,42692.0,42691.0,0.02882]
[1704110920182,2.61711911,42692.0,42691.0,0.03082]
[1704110920390,2.59407911,42692.0,42691.0,0.03082]
[1704110920807,2.68473911,42692.0,42691.0,0.03082]
[1704110921238,2.70273911,42692.0,42691.0,0.03282]
[1704110922441,2.61207911,42692.0,42691.0,0.03282]
[1704110924724,2.14360811,42692.0,42691.0,0.03282]
[1704110929911,2.17196247,42692.0,42691.0,0.03282]
[1704110930655,2.20478247,42692.0,42691.0,0.03282]
[1704110933652,1.73631147,42692.0,42691.0,0.03282]
[1704110934082,2.20478247,42692.0,42691.0,0.03282]
[1704110934292,2.67325347,42692.0,42691.0,0.03282]
[1704110937107,2.69118347,42692.0,42691.0,0.03282]
[1704110937314,2.22271247,42692.0,42691.0,0.03282]
[1704110937728,2.69118347,42692.0,42691.0,0.03282]
[1704110939223,2.68118347,42692.0,42691.0,0.03282]
[1704110939453,2.69118347,42692.0,42691.0,0.03282]
[1704110939659,3.3769324,42692.0,42691.0,0.03282]
[1704110939838,3.4737724,42692.0,42691.0,0.03282]
[1704110940093,3.3769324,42692.0,42691.0,0.03282]
[1704110940722,3.14849447,42692.0,42691.0,0.03282]
[1704110944218,2.44849447,42692.0,42691.0,0.03282]
[1704110945826,1.98002347,42692.0,42691.0,0.03282]
[1704110946454,2.27891991,42692.0,42691.0,0.03282]
[1704110946699,2.74739091,42692.0,42691.0,0.03282]
[1704110947682,2.17891991,42692.0,42691.0,0.03282]
[1704110947918,2.20499991,42692.0,42691.0,0.03282]
[1704110948166,1.60610347,42692.0,42691.0,0.03282]
[1704110948383,1.75140347,42692.0,42691.0,0.03282]
[1704110948586,1.70610347,42692.0,42691.0,0.03282]
[1704110948799,1.75800347,42692.0,42691.0,0.03282]
[1704110950231,1.74000347,42692.0,42691.0,0.03082]
[1704110950234,1.72300347,42692.0,42691.0,0.02882]
[1704110950480,1.27453247,42692.0,42691.0,0.03182]
[1704110950716,1.27253247,42692.0,42691.0,0.03082]
[1704110950953,1.28753247,42692.0,42691.0,0.03182]
[1704110951413,1.25453247,42692.0,42691.0,0.02882]
[1704110951648,1.25453247,42692.0,42691.0,0.02982]
[1704110951649,1.26753247,42692.0,42691.0,0.02982]
[1704110952761,1.28253247,42692.0,42691.0,0.03082]
[1704110953171,1.26753247,42692.0,42691.0,0.02982]
[1704110953578,1.26753247,42692.0,42691.0,0.03082]
[1704110953579,1.28153247,42692.0,42691.0,0.03082]
[1704110954004,1.27153247,42692.0,42691.0,0.03082]
[1704110954897,0.87964536,42692.0,42691.0,0.03082]
[1704110955196,0.88964536,42692.0,42691.0,0.03082]
[1704110956420,0.87964536,42692.0,42691.0,0.03082]
[1704110956654,0.88964536,42692.0,42691.0,0.03082]
[1704110956894,0.528291,42692.0,42691.0,0.03082]
[1704110957143,0.327,42692.0,42691.0,0.03082]
[1704110957380,0.027,42692.0,42691.0,0.03082]
[1704110957869,0.468452,42694.0,42691.0,0.02882]
[1704110958104,0.468452,42694.0,42692.0,0.00281]
[1704110959146,0.468421,42697.0,42692.0,0.00281]
[1704110959691,0.468421,42697.0,42693.0,0.2227]
[1704110959918,0.013,42694.0,42693.0,0.2227]
[1704110960467,0.006,42694.0,42693.0,0.2227]
[1704110960718,0.468421,42697.0,42693.0,0.2227]
[1704110960985,0.481421,42697.0,42693.0,0.2227]
[1704110961237,0.475421,42697.0,42693.0,0.2227]
[1704110962212,0.468421,42697.0,42693.0,0.2227]
[1704110962464,0.001,42694.0,42693.0,0.2227]
[1704110962716,0.003,42694.0,42693.0,0.2227]
[1704110962948,0.002,42694.0,42693.0,0.2227]
[1704110963889,0.002,42694.0,42693.0,0.2237]
[1704110963890,0.003,42694.0,42693.0,0.2237]
[1704110964102,0.003,42694.0,42693.0,0.22651]
[1704110965209,0.001,42694.0,42693.0,0.22551]
[1704110965640,0.003,42694.0,42693.0,0.22551]
[1704110965887,0.002,42694.0,42693.0,0.22551]
[1704110966547,0.468373,42701.0,42694.0,0.00281]
[1704110967560,0.468373,42701.0,42693.0,0.2247]
[1704110967761,0.468373,42701.0,42693.0,0.2277]
[1704110968351,0.468373,42701.0,42693.0,0.2257]
[1704110968575,0.476373,42701.0,42694.0,0.001]
[1704110969194,0.475373,42701.0,42694.0,0.001]
[1704110969432,0.483373,42701.0,42694.0,0.001]
[1704110969832,0.475373,42701.0,42694.0,0.001]
[1704110970055,0.468373,42701.0,42693.0,0.26942]
[1704110970260,0.476373,42701.0,42694.0,0.001]
[1704110970878,0.482373,42701.0,42694.0,0.001]
[1704110971526,0.474373,42701.0,42693.0,0.26942]
[1704110971742,0.474373,42701.0,42693.0,0.31604]
[1704110971966,0.013,42701.0,42694.0,0.001]
[1704110972429,0.013,42701.0,42694.0,0.23421711]
[1704110972676,0.468351,42703.0,42694.0,0.23321711]
[1704110972897,0.013,42701.0,42695.0,0.23321711]
[1704110973176,0.007,42701.0,42695.0,0.28091711]
[1704110973348,0.768322,42706.0,42695.0,0.28091711]
[1704110973623,0.006,42701.0,42696.0,0.1]
[1704110973846,0.006,42701.0,42697.0,0.49963711]
[1704110974275,0.468293,42709.0,42697.0,0.49963711]
[1704110974458,0.491296,42708.0,42697.0,0.49963711]
[1704110974707,0.007,42701.0,42697.0,0.49963711]
[1704110975136,0.491296,42708.0,42697.0,0.49963711]
[1704110975360,0.491296,42708.0,42697.0,0.50063711]
[1704110975576,0.3,42707.0,42697.0,0.50063711]
[1704110975789,0.3,42707.0,42697.0,0.49963711]
[1704110976001,0.006,42701.0,42697.0,0.49963711]
[1704110976213,0.001,42701.0,42697.0,0.49963711]
[1704110976445,0.001,42701.0,42697.0,0.50063711]
[1704110976928,0.001,42701.0,42697.0,0.49963711]
[1704110977603,0.3,42707.0,42697.0,0.49963711]
[1704110977816,0.307,42707.0,42697.0,0.50063711]
[1704110978464,0.3,42707.0,42697.0,0.49963711]
[1704110978679,0.3,42707.0,42697.0,1.07105311]
[1704110978886,0.3,42707.0,42697.0,1.06805311]
[1704110979098,0.3,42707.0,42697.0,1.07005311]
[1704110979304,0.306,42707.0,42697.0,1.07005311]
[1704110980811,0.306,42707.0,42697.0,1.06805311]
[1704110981882,0.313,42707.0,42697.0,1.06905311]
[1704110982510,0.307,42707.0,42697.0,1.06905311]
[1704110982722,0.3,42707.0,42697.0,1.06805311]
[1704110982937,0.306,42707.0,42697.0,1.06805311]
[1704110983151,0.3,42707.0,42697.0,1.06805311]
[1704110983363,0.306,42707.0,42697.0,1.06805311]
[1704110983998,0.313,42707.0,42697.0,1.06905311]
[1704110984463,0.006,42707.0,42697.0,1.06805311]
[1704110984679,0.013,42707.0,42697.0,1.06905311]
[1704110985103,0.307,42707.0,42697.0,1.06905311]
[1704110985326,0.3,42707.0,42697.0,1.06805311]
[1704110985537,0.309,42707.0,42697.0,1.06805311]
[1704110992070,0.777307,42707.0,42697.0,1.06805311]
[1704111000126,0.46834,42704.0,42697.0,0.26642]
[1704111001151,0.46834,42704.0,42694.0,0.04672]
[1704111001391,0.46834,42704.0,42694.0,0.51153711]
[1704111001605,0.46934,42704.0,42694.0,0.51153711]
[1704111002230,0.46834,42704.0,42694.0,0.51153711]
[1704111003019,0.07292,42703.0,42694.0,0.04672]
[1704111003259,0.468392,42700.0,42694.0,0.04672]
[1704111004142,0.468392,42700.0,42692.0,0.04672]
[1704111004345,0.25292,42703.0,42692.0,0.04672]
[1704111004346,0.2051,42703.0,42692.0,0.04672]
[1704111004565,0.005,42700.0,42692.0,0.04672]
[1704111004774,0.005,42700.0,42694.0,0.001]
[1704111004981,0.468395,42699.0,42694.0,0.001]
[1704111005197,0.005,42700.0,42694.0,0.001]
[1704111005624,0.005,42700.0,42692.0,0.04672]
[1704111005625,0.673453,42703.0,42692.0,0.04672]
[1704111005823,0.004,42700.0,42692.0,0.04672]
[1704111006778,0.009,42700.0,42692.0,0.04672]
[1704111006981,0.005,42700.0,42692.0,0.04672]
[1704111007189,0.90667011,42703.0,42692.0,0.04672]
[1704111007427,0.004,42700.0,42692.0,0.04672]
[1704111007688,0.005,42700.0,42692.0,0.04672]
[1704111007845,0.009,42700.0,42692.0,0.04672]
[1704111008045,0.004,42700.0,42692.0,0.04672]
[1704111008370,0.004,42700.0,42692.0,0.04772]
[1704111009879,0.004,42700.0,42692.0,0.04672]
[1704111010089,0.009,42700.0,42692.0,0.04672]
[1704111019314,0.009,42700.0,42698.0,0.468405]
[1704111019508,0.004,42700.0,42699.0,0.04672]
[1704111019997,0.009,42700.0,42699.0,0.04672]
[1704111020437,0.32794566,42709.0,42699.0,0.04672]
[1704111020648,0.006,42700.0,42699.0,0.04672]
[1704111021079,0.002,42700.0,42699.0,0.04672]
[1704111021298,0.52474566,42709.0,42699.0,0.04672]
[1704111021740,0.32794566,42709.0,42699.0,0.04972]
[1704111021980,0.32794566,42709.0,42699.0,0.09736]
[1704111022162,0.32794566,42709.0,42699.0,0.565752]
[1704111022375,0.32794566,42709.0,42699.0,0.569752]
[1704111022584,0.32794566,42709.0,42699.0,0.571752]
[1704111023016,0.32794566,42709.0,42699.0,0.569752]
[1704111023429,0.33494566,42709.0,42699.0,0.566752]
[1704111023851,0.33694566,42709.0,42699.0,0.516112]
[1704111024053,0.32794566,42709.0,42699.0,0.515112]
[1704111024268,0.33494566,42709.0,42699.0,0.04772]
[1704111024476,0.34094566,42709.0,42699.0,0.516112]
[1704111024674,0.33494566,42709.0,42699.0,0.516112]
[1704111024883,0.34094566,42709.0,42699.0,0.516112]
[1704111025290,0.33494566,42709.0,42699.0,0.516112]
[1704111025505,0.32794566,42709.0,42699.0,0.515112]
[1704111025883,0.33494566,42709.0,42699.0,0.561292]
[1704111026254,0.32794566,42709.0,42699.0,0.560292]
[1704111026455,0.33394566,42709.0,42699.0,0.560292]
[1704111026704,0.33494566,42709.0,42699.0,0.516112]
[1704111027114,0.33394566,42709.0,42699.0,0.560112]
[1704111027360,0.32794566,42709.0,42699.0,0.560112]
[1704111027536,0.03294566,42709.0,42699.0,0.560112]
[1704111027941,0.03694566,42709.0,42699.0,0.560112]
[1704111028207,0.009,42709.0,42701.0,0.515086]
[1704111028415,0.009,42709.0,42703.0,0.04684]
[1704111028969,0.005,42709.0,42703.0,0.04684]
[1704111029174,0.02799074,42711.0,42703.0,0.04684]
[1704111029538,0.35594301,42712.0,42703.0,0.04684]
[1704111029747,0.005,42709.0,42703.0,0.04684]
[1704111030192,0.004,42709.0,42703.0,0.04684]
[1704111030511,0.82419501,42712.0,42703.0,0.04684]
[1704111030715,0.83719501,42712.0,42703.0,0.04784]
[1704111031149,0.83719501,42712.0,42703.0,0.04684]
[1704111031150,0.83019501,42712.0,42703.0,0.04684]
[1704111031358,0.002,42709.0,42703.0,0.04684]
[1704111031746,0.003,42709.0,42703.0,0.04684]
[1704111032173,0.002,42709.0,42703.0,0.04684]
[1704111032809,0.85175244,42712.0,42703.0,0.04684]
[1704111033016,0.85875244,42712.0,42703.0,0.04784]
[1704111033422,0.85775244,42712.0,42703.0,0.04684]
[1704111033626,0.85175244,42712.0,42703.0,0.04684]
[1704111034035,0.002,42709.0,42703.0,0.04684]
[1704111034239,0.85175244,42712.0,42703.0,0.04684]
[1704111034686,0.86475244,42712.0,42703.0,0.04784]
[1704111034897,0.85875244,42712.0,42703.0,0.04784]
[1704111035203,0.001,42709.0,42703.0,0.04784]
[1704111035821,0.001,42709.0,42703.0,0.04684]
[1704111036235,0.001,42709.0,42703.0,0.04784]
[1704111036433,0.85875244,42712.0,42703.0,0.04784]
[1704111036694,0.85775244,42712.0,42703.0,0.04684]
[1704111036895,0.002,42709.0,42703.0,0.04684]
[1704111037231,0.003,42709.0,42703.0,0.04684]
[1704111037441,0.85175244,42712.0,42703.0,0.04684]
[1704111037652,0.468263,42711.0,42703.0,0.04784]
[1704111037871,0.3,42710.0,42703.0,0.04784]
[1704111038319,0.001,42709.0,42703.0,0.04784]
[1704111038843,0.001,42709.0,42703.0,0.04684]
[1704111047272,0.3,42710.0,42703.0,0.04684]
[1704111048487,0.001,42709.0,42703.0,0.04684]
[1704111048881,0.3,42710.0,42703.0,0.04684]
[1704111049336,0.302,42710.0,42703.0,0.04684]
[1704111049594,0.303,42710.0,42703.0,0.04684]
[1704111057410,0.003,42710.0,42703.0,0.04684]
[1704111057644,0.303,42710.0,42703.0,0.04684]
[1704111058709,0.771275,42710.0,42703.0,0.04684]
[1704111059113,0.303,42710.0,42703.0,0.04684]
[1704111059324,0.468301,42708.0,42703.0,0.04684]
[1704111061095,0.468301,42708.0,42703.0,0.04784]
[1704111061296,0.468301,42708.0,42703.0,0.04884]
[1704111061799,0.468301,42708.0,42703.0,0.002]
[1704111062267,0.468301,42708.0,42702.0,0.2311]
[1704111062624,0.469301,42708.0,42702.0,0.2311]
[1704111063070,0.475301,42708.0,42702.0,0.2311]
[1704111063303,0.469301,42708.0,42702.0,0.2311]
[1704111063742,0.58441356,42708.0,42702.0,0.2311]
[1704111063961,0.58341356,42708.0,42702.0,0.2311]
[1704111064434,0.59041356,42708.0,42703.0,0.001]
[1704111064772,0.64635657,42708.0,42703.0,0.001]
[1704111064936,0.63935657,42708.0,42702.0,0.2311]
[1704111065430,0.63335657,42708.0,42702.0,0.2311]
[1704111065684,0.64635657,42708.0,42702.0,0.2321]
[1704111065920,0.64035657,42708.0,42702.0,0.2321]
[1704111066373,0.64635657,42708.0,42702.0,0.2321]
[1704111066578,0.50715175,42708.0,42702.0,0.2321]
[1704111069082,0.53724401,42708.0,42702.0,0.2321]
[1704111075578,0.05594301,42704.0,42702.0,0.001]
[1704111075790,0.468351,42703.0,42702.0,0.001]
[1704111076000,0.60832259,42703.0,42702.0,0.001]
[1704111076179,0.58062679,42703.0,42702.0,0.001]
[1704111076670,0.60362679,42703.0,42702.0,0.001]
[1704111076882,0.60362679,42703.0,42697.0,0.2193]
[1704111077095,0.60362679,42703.0,42702.0,0.001]
[1704111077310,0.60356811,42703.0,42702.0,0.001]
[1704111077957,0.5755116,42703.0,42702.0,0.001]
[1704111078361,0.491351,42703.0,42702.0,0.001]
[1704111079019,0.491351,42703.0,42697.0,0.2193]
[1704111079465,0.54744451,42703.0,42697.0,0.2203]
[1704111079670,0.491351,42703.0,42697.0,0.2193]
[1704111079884,0.500351,42703.0,42702.0,0.001]
[1704111080140,0.501351,42703.0,42702.0,0.001]
[1704111080577,0.500351,42703.0,42697.0,0.2203]
[1704111080784,0.491351,42703.0,42697.0,0.2193]
[1704111080987,0.501351,42703.0,42697.0,0.2203]
[1704111081196,0.510351,42703.0,42702.0,0.001]
[1704111082579,0.501351,42703.0,42697.0,0.2203]
[1704111082985,0.510351,42703.0,42697.0,0.2213]
[1704111083188,0.468351,42703.0,42697.0,0.2193]
[1704111083436,0.478351,42703.0,42702.0,0.001]
[1704111083681,0.019,42703.0,42702.0,0.002]
[1704111083950,0.3,42705.0,42699.0,0.1]
[1704111084123,0.52438651,42709.0,42699.0,0.1]
[1704111084124,0.009,42703.0,42700.0,0.26744]
[1704111084288,0.019,42703.0,42700.0,0.26744]
[1704111084750,0.009,42703.0,42700.0,0.26744]
[1704111084961,0.009,42703.0,42700.0,0.31418]
[1704111085515,0.002,42705.0,42700.0,0.31418]
[1704111085678,0.002,42705.0,42702.0,0.001]
[1704111085679,0.008,42703.0,42702.0,0.001]
[1704111085826,0.002,42705.0,42700.0,0.31418]
[1704111086070,0.002,42705.0,42700.0,0.26744]
[1704111086254,0.3,42711.0,42700.0,0.26844]
[1704111086497,0.3,42711.0,42700.0,0.26744]
[1704111086732,0.3,42711.0,42702.0,0.001]
[1704111087182,0.3,42711.0,42703.0,0.2196]
[1704111088203,0.779263,42711.0,42703.0,0.2196]
[1704111088948,0.790263,42711.0,42703.0,0.2196]
[1704111089380,0.779263,42711.0,42703.0,0.2196]
[1704111089584,0.768263,42711.0,42703.0,0.2196]
[1704111089791,0.779263,42711.0,42703.0,0.2206]
[1704111090217,0.311,42711.0,42703.0,0.2196]
[1704111090419,0.468263,42711.0,42703.0,0.2196]
[1704111090591,0.3,42710.0,42703.0,0.2216]
[1704111091945,0.3,42710.0,42703.0,0.2206]
[1704111092351,0.3,42710.0,42703.0,0.2216]
[1704111092553,0.3,42710.0,42703.0,0.2196]
[1704111092721,0.3,42710.0,42703.0,0.2206]
[1704111092943,0.313,42710.0,42703.0,0.2206]
[1704111094140,0.013,42710.0,42703.0,0.2206]
[1704111094354,0.481276,42710.0,42703.0,0.2206]
[1704111096174,0.4683,42708.0,42703.0,0.2206]
[1704111096383,0.468327,42706.0,42703.0,0.2206]
[1704111096581,0.10955351,42709.0,42703.0,0.001]
[1704111096582,0.46834,42704.0,42703.0,0.001]
[1704111097185,0.46834,42704.0,42697.0,0.2285]
[1704111097390,0.023,42705.0,42697.0,0.2285]
[1704111097391,0.07909351,42705.0,42697.0,0.2285]
[1704111097620,0.468384,42700.0,42697.0,0.2285]
[1704111097968,0.468384,42700.0,42696.0,0.70394]
[1704111099020,0.468384,42700.0,42697.0,0.002]
[1704111099668,0.473384,42700.0,42695.0,0.04684]
[1704111100486,0.468384,42700.0,42695.0,0.04684]
[1704111100693,0.473384,42700.0,42695.0,0.04684]
[1704111101738,0.005,42700.0,42695.0,0.04684]
[1704111101955,0.473384,42700.0,42695.0,0.04684]
[1704111102364,0.478384,42700.0,42695.0,0.04684]
[1704111105125,0.478384,42700.0,42694.0,0.2302]
[1704111105935,0.473384,42700.0,42694.0,0.2302]
[1704111106544,0.478384,42700.0,42694.0,0.2302]
[1704111108402,0.468397,42699.0,42694.0,0.2302]
[1704111109597,0.472397,42699.0,42694.0,0.2302]
[1704111110005,0.475397,42699.0,42694.0,0.2302]
[1704111111428,0.468406,42698.0,42694.0,0.2302]
[1704111111631,0.491406,42698.0,42694.0,0.2302]
[1704111112444,0.493406,42698.0,42694.0,0.2302]
[1704111112672,0.495406,42698.0,42694.0,0.2302]
[1704111119128,0.540466,42698.0,42694.0,0.2302]
[1704111119364,0.495406,42698.0,42694.0,0.2302]
[1704111119576,0.540766,42698.0,42694.0,0.2302]
[1704111119789,0.495406,42698.0,42694.0,0.2302]
[1704111119970,0.04512,42697.0,42694.0,0.2302]
[1704111120170,0.468423,42697.0,42691.0,0.28014]
[1704111121595,0.469423,42697.0,42691.0,0.28014]
[1704111122196,0.28073711,42697.0,42691.0,0.28014]
[1704111122407,0.023,42696.0,42691.0,0.28014]
[1704111123178,0.468445,42695.0,42691.0,0.28014]
[1704111124972,0.470445,42695.0,42691.0,0.28014]
[1704111126405,0.472445,42695.0,42691.0,0.28014]
[1704111127269,0.518945,42695.0,42691.0,0.28014]
[1704111127477,0.472445,42695.0,42691.0,0.28014]
[1704111127859,0.1,42694.0,42691.0,0.28014]
[1704111128068,0.468471,42692.0,42691.0,0.2333]
[1704111128269,0.491471,42692.0,42691.0,0.2333]
[1704111129545,0.491471,42692.0,42691.0,0.2363]
[1704111129727,0.491471,42692.0,42691.0,0.2383]
[1704111130479,0.491471,42692.0,42691.0,0.2363]
[1704111130886,0.491471,42692.0,42691.0,0.2333]
[1704111131322,0.494471,42692.0,42684.0,0.04684]
[1704111131523,0.023,42691.0,42685.0,0.219]
[1704111132731,0.025,42691.0,42685.0,0.219]
[1704111133133,0.72670711,42691.0,42685.0,0.219]
[1704111133331,0.468495,42690.0,42685.0,0.219]
[1704111133664,0.023,42689.0,42685.0,0.219]
[1704111133811,0.323,42689.0,42685.0,0.219]
[1704111134821,0.37286,42689.0,42685.0,0.001]
[1704111136226,0.33321711,42688.0,42685.0,0.002]
[1704111136407,0.478537,42686.0,42685.0,0.002]
[1704111136636,0.801537,42686.0,42685.0,0.002]
[1704111137061,0.801537,42686.0,42685.0,0.001]
[1704111138143,0.801537,42686.0,42679.0,0.2357]
[1704111138356,0.791549,42685.0,42679.0,0.2357]
[1704111139796,0.796549,42685.0,42679.0,0.2357]
[1704111140220,0.801549,42685.0,42679.0,0.2357]
[1704111140818,0.801554,42685.0,42679.0,0.2357]
[1704111141471,0.46856,42684.0,42679.0,0.2357]
[1704111142557,0.47256,42684.0,42679.0,0.2357]
[1704111143144,0.47556,42684.0,42679.0,0.2357]
[1704111143884,0.47556,42684.0,42682.0,0.2202]
[1704111144900,0.47156,42684.0,42682.0,0.2202]
[1704111145145,0.46856,42684.0,42682.0,0.2202]
[1704111145366,0.47556,42684.0,42682.0,0.2202]
[1704111145581,0.007,42684.0,42682.0,0.2202]
[1704111145839,0.46857,42683.0,42682.0,0.2202]
[1704111146663,0.52101,42683.0,42682.0,0.2202]
[1704111146878,0.468581,42682.0,42676.0,0.2398]
[1704111147106,0.491581,42682.0,42676.0,0.2398]
[1704111148626,0.492581,42682.0,42676.0,0.2398]
[1704111152774,1.71449911,42682.0,42681.0,0.00388887]
[1704111153015,1.71449911,42682.0,42672.0,0.05]
[1704111153016,0.47868,42673.0,42672.0,0.05]
[1704111153249,0.80168,42673.0,42672.0,0.05]
[1704111153482,0.76868,42673.0,42672.0,0.05]
[1704111153705,0.3,42673.0,42672.0,0.05]
[1704111154362,0.3,42674.0,42670.0,0.2266]
[1704111154596,0.468661,42675.0,42670.0,0.2266]
[1704111154815,0.468627,42678.0,42670.0,0.2266]
[1704111154998,0.3,42677.0,42670.0,0.2266]
[1704111155244,0.005,42673.0,42670.0,0.2266]
[1704111155470,0.3,42677.0,42670.0,0.2266]
[1704111155684,0.005,42674.0,42670.0,0.2266]
[1704111156108,0.3,42677.0,42670.0,0.2266]
[1704111156373,0.768639,42677.0,42670.0,0.2266]
[1704111157465,0.003,42673.0,42670.0,0.2266]
[1704111157690,0.004,42673.0,42670.0,0.2266]
[1704111158136,0.004,42673.0,42670.0,0.2276]
[1704111158792,0.768639,42677.0,42670.0,0.2266]
[1704111159249,0.003,42673.0,42670.0,0.2276]
[1704111160376,0.778639,42677.0,42670.0,0.2276]
[1704111160623,0.468648,42676.0,42670.0,0.2276]
[1704111161060,0.004,42673.0,42670.0,0.2266]
[1704111161515,0.003,42673.0,42670.0,0.2266]
[1704111161754,0.3,42677.0,42670.0,0.2266]
[1704111161972,0.016,42676.0,42670.0,0.2286]
[1704111162207,0.008,42676.0,42670.0,0.2276]
[1704111162424,0.3,42677.0,42670.0,0.2266]
[1704111162647,0.004,42673.0,42670.0,0.2266]
[1704111163761,0.007,42673.0,42670.0,0.2266]
[1704111164451,0.3,42677.0,42670.0,0.2266]
[1704111164653,0.008,42676.0,42670.0,0.2276]
[1704111164871,0.002,42673.0,42670.0,0.2276]
[1704111165339,0.002,42673.0,42671.0,0.23321711]
[1704111165583,0.004,42673.0,42672.0,0.04684]
[1704111165782,0.004,42673.0,42672.0,0.38005711]
[1704111166427,0.002,42673.0,42672.0,0.38005711]
[1704111166655,0.468562,42684.0,42672.0,0.38005711]
[1704111166893,0.006,42676.0,42673.0,0.28005711]
[1704111167102,0.468562,42684.0,42673.0,0.51345711]
[1704111167760,0.3,42683.0,42673.0,0.51345711]
[1704111168645,0.3,42683.0,42673.0,0.51545711]
[1704111169094,0.3,42683.0,42673.0,0.51445711]
[1704111169529,0.31,42683.0,42673.0,0.51545711]
[1704111169741,0.31,42683.0,42673.0,0.51445711]
[1704111170184,0.319,42683.0,42673.0,0.51545711]
[1704111170837,0.31,42683.0,42673.0,0.51445711]
[1704111171257,0.319,42683.0,42673.0,0.51545711]
[1704111171466,0.309,42683.0,42674.0,0.1]
[1704111171680,0.319,42683.0,42674.0,0.33321711]
[1704111172523,0.309,42683.0,42674.0,0.33321711]
[1704111172734,0.31,42683.0,42674.0,0.33421711]
[1704111172939,0.01,42683.0,42674.0,0.33421711]
[1704111173158,0.3,42682.0,42674.0,0.33521711]
[1704111174018,0.3,42682.0,42674.0,0.33421711]
[1704111174284,0.3,42682.0,42674.0,0.33521711]
[1704111174467,0.008,42682.0,42674.0,0.33521711]
[1704111175242,0.008,42682.0,42674.0,0.33421711]
[1704111175725,0.016,42682.0,42674.0,0.33521711]
[1704111180236,0.016,42682.0,42674.0,0.23521711]
[1704111184177,0.016,42682.0,42674.0,0.33521711]
[1704111187832,0.016,42682.0,42676.0,0.1]
[1704111188048,0.016,42682.0,42675.0,0.23321711]
[1704111188049,0.016,42682.0,42678.0,0.04684]
[1704111188260,0.016,42682.0,42678.0,0.74868011]
[1704111188483,0.016,42682.0,42680.0,0.04684]
[1704111188694,0.016,42682.0,42681.0,0.23321711]
[1704111188695,0.008,42682.0,42681.0,0.23321711]